fUSD/lending_fUSD_20240425
["ID","MTS","AMOUNT","RATE_DAILY","PERIOD"]
[323459413,1714009833110,-357.81521769,0.00012827,2]
[323459414,1714009833120,-799.06328443,0.00012831,2]
[323459415,1714009833129,-357.81521769,0.00012836,2]
[323459416,1714009833138,-799.06328443,0.0001284,2]
[323459417,1714009833147,-357.81521769,0.00012845,2]
[323459418,1714009833156,-799.06328443,0.00012849,2]
[323459419,1714009833166,-357.81521769,0.00012855,2]
[323459420,1714009833175,-799.06328443,0.00012857,2]
[323459421,1714009833184,-357.81521769,0.00012864,2]
[323459422,1714009833193,-799.06328443,0.00012866,2]
[323459423,1714009833203,-357.81521769,0.00012873,2]
[323459424,1714009833213,-799.06328443,0.00012874,2]
[323459425,1714009833221,-500.0,0.00012877,2]
[323459426,1714009833230,-500.0,0.00012877,2]
[323459427,1714009833239,-500.0,0.00012877,2]
[323459428,1714009833249,-500.0,0.00012877,2]
[323459429,1714009833259,-463.96562271,0.00012877,2]
[323459430,1714009833268,-500.0,0.00012877,2]
[323459431,1714009833277,-500.0,0.00012877,2]
[323459432,1714009833287,-500.0,0.00012877,2]
[323459433,1714009833296,-500.0,0.00012877,2]
[323459434,1714009833306,-2390.21,0.00012877,2]
[323459435,1714009833315,-500.0,0.00012877,2]
[323459436,1714009833324,-500.0,0.00012877,2]
[323459437,1714009833333,-500.0,0.00012877,2]
[323459438,1714009833342,-500.0,0.00012877,2]
[323459439,1714009833351,-638.52,0.00012878,2]
[323459440,1714009833361,-176.03893315,0.00012878,2]
[323459441,1714009833370,-500.0,0.00012878,2]
[323459442,1714009833380,-500.0,0.00012878,2]
[323459443,1714009833390,-500.0,0.00012878,2]
[323459444,1714009833399,-500.0,0.00012878,2]
[323459445,1714009833409,-500.0,0.00012878,2]
[323459446,1714009833419,-500.0,0.00012878,2]
[323459447,1714009833428,-510.27722487,0.00012878,2]
[323459448,1714009833437,-720.77,0.00012878,2]
[323459449,1714009833446,-384.52178248,0.00012878,2]
[323459450,1714009833455,-500.0,0.00012878,2]
[323459451,1714009833464,-500.0,0.00012878,2]
[323459452,1714009833473,-500.0,0.00012878,2]
[323459453,1714009833482,-500.0,0.00012878,2]
[323459454,1714009833491,-500.0,0.00012878,2]
[323459455,1714009833502,-349.31192797,0.00012878,2]
[323459456,1714009833511,-500.0,0.00012878,2]
[323459457,1714009833520,-348.15327694,0.00012878,2]
[323459458,1714009833529,-505.27156647,0.00012878,2]
[323459459,1714009833539,-1057.32,0.00012878,2]
[323459460,1714009833548,-2335.95779415,0.00012878,2]
[323459461,1714009833561,-1306.02044484,0.00012878,2]
[323459462,1714009833572,-351.29176101,0.00012878,2]
[323459463,1714009833581,-117.87823899,0.00012878,4]
[323459473,1714009838302,-382.12176101,0.00012878,4]
[323459474,1714009838311,-422.87828899,0.00012878,4]
[323459476,1714009840248,-77.12171101,0.00012878,4]
[323459477,1714009840258,-500.0,0.00012878,4]
[323459478,1714009840268,-500.0,0.00012878,4]
[323459479,1714009840278,-91.04632501,0.00012878,4]
[323459480,1714009840352,-408.95367499,0.00012878,4]
[323459481,1714009840361,-500.0,0.00012878,4]
[323459482,1714009840370,-500.0,0.00012878,4]
[323459483,1714009840379,-500.0,0.00012878,4]
[323459484,1714009840388,-500.0,0.00012878,4]
[323459485,1714009840398,-500.0,0.00012878,4]
[323459486,1714009840407,-500.0,0.00012878,4]
[323459487,1714009840416,-218.00388282,0.00012878,4]
[323459488,1714009840428,-281.99611718,0.00012878,4]
[323459489,1714009840437,-463.00388282,0.00012878,4]
[323459512,1714009843167,-505.0,0.00012328,2]
[323459514,1714009843178,-164.37354978,0.00012751,2]
[323459516,1714009843187,-142.08079205,0.00012877,2]
[323459528,1714009846205,-357.91920795,0.00012877,2]
[323459529,1714009846216,-36.99611718,0.00012878,4]
[323459530,1714009846226,-500.0,0.00012878,4]
[323459531,1714009846235,-288.13682449,0.00012878,4]
[323459532,1714009846474,-211.86317551,0.00012878,4]
[323459533,1714009846484,-500.0,0.00012878,4]
[323459534,1714009846493,-359.90421627,0.00012878,4]
[323459535,1714009846502,-500.0,0.00012878,2]
[323459536,1714009846513,-500.0,0.00012878,2]
[323459537,1714009846522,-500.0,0.00012878,2]
[323459538,1714009846531,-500.0,0.00012878,2]
[323459539,1714009846541,-500.0,0.00012878,2]
[323459540,1714009846550,-1118.14864695,0.00012878,2]
[323459541,1714009846561,-1062.01597327,0.00012879,2]
[323459542,1714009846570,-2397.94297103,0.00012879,2]
[323459543,1714009846580,-510.48861851,0.00012879,2]
[323459544,1714009846590,-500.0,0.00012879,2]
[323459545,1714009846599,-500.0,0.00012879,2]
[323459546,1714009846609,-2509.8,0.00012879,2]
[323459547,1714009846618,-151697.37690433,0.0001288,2]
[323459548,1714009846630,-16730.45181081,0.0001288,2]
[323459549,1714009846641,-11120.2528,0.0001288,2]
[323459579,1714011032205,-1256.53939882,9.473e-05,2]
[323459581,1714011032217,-1604.83711839,9.473e-05,2]
[323459583,1714011032226,-621.73302935,9.474e-05,2]
[323459585,1714011032235,-12986.43641194,9.476e-05,2]
[323459588,1714011032248,-7544.12194293,9.476e-05,2]
[323459590,1714011032256,-300.98,9.479e-05,2]
[323459592,1714011032265,-150.0,9.485e-05,2]
[323459594,1714011032274,-950.0,9.5e-05,2]
[323459596,1714011032283,-950.0,0.0001,2]
[323459598,1714011032292,-255.32105504,0.0001,2]
[323459599,1714011032301,-1206.15784753,0.00011201,2]
[323459602,1714011032317,-1056.23264385,0.00011201,2]
[323459604,1714011032326,-250.0,0.00011316,2]
[323459606,1714011032335,-597.21,0.00011386,2]
[323459608,1714011032344,-499.99,0.00011386,2]
[323459609,1714011032353,-2139.02,0.000114,2]
[323459610,1714011032362,-150.0,0.00011413,2]
[323459611,1714011032372,-1707.54735615,0.00011414,2]
[323459612,1714011032386,-11297.78264385,0.00011414,2]
[323459613,1714011032395,-185.57,0.00011471,2]
[323459614,1714011032410,-800.0,0.00011518,2]
[323459615,1714011032420,-751.60094866,0.0001159,2]
[323459616,1714011032429,-300.98,0.00011743,2]
[323459617,1714011032438,-200.0,0.00011895,2]
[323459618,1714011032447,-824.98,0.00011941,2]
[323459619,1714011032458,-908.76,0.00011941,2]
[323459620,1714011032468,-2095.76358154,0.00012,2]
[323459621,1714011032480,-654.23641846,0.00012,2]
[323459622,1714011032490,-910.54,0.00012141,2]
[323459623,1714011032500,-910.54,0.00012141,2]
[323459624,1714011032509,-910.54,0.00012141,2]
[323459625,1714011032520,-910.54,0.00012141,2]
[323459626,1714011032531,-882.95,0.00012141,2]
[323459627,1714011032541,-88.35455272,0.00012234,2]
[323459628,1714011032552,-291.77118857,0.00012234,2]
[323459629,1714011032561,-427.28,0.00012278,2]
[323459630,1714011032570,-306.06,0.00012278,2]
[323459631,1714011032580,-150.33,0.00012278,2]
[323459632,1714011032588,-350.51,0.00012278,2]
[323459633,1714011032598,-300.7,0.00012278,2]
[323459635,1714011032607,-150.59,0.00012278,2]
[323459637,1714011032616,-22.75881143,0.00012278,2]
[323459639,1714011032628,-499.37118857,0.00012278,2]
[323459641,1714011032637,-301.55,0.00012278,2]
[323459643,1714011032650,-150.73,0.00012278,2]
[323459645,1714011032659,-522.13,0.00012278,2]
[323459647,1714011032669,-350.51,0.00012278,2]
[323459648,1714011032678,-150.0,0.00012278,2]
[323459649,1714011032687,-522.13,0.00012278,2]
[323459650,1714011032696,-150.0,0.00012278,2]
[323459651,1714011032706,-350.51,0.00012278,2]
[323459652,1714011032715,-150.0,0.00012278,2]
[323459653,1714011032725,-350.51,0.00012278,2]
[323459654,1714011032735,-522.13,0.00012278,2]
[323459655,1714011032744,-350.51,0.00012278,2]
[323459656,1714011032754,-522.13,0.00012278,2]
[323459657,1714011032763,-150.0,0.00012278,2]
[323459658,1714011032773,-350.51,0.00012278,2]
[323459659,1714011032782,-522.13,0.00012278,2]
[323459660,1714011032791,-150.0,0.00012278,2]
[323459661,1714011032801,-522.13,0.00012278,2]
[323459662,1714011032810,-350.51,0.00012278,2]
[323459663,1714011032820,-350.51,0.00012278,2]
[323459664,1714011032829,-522.13,0.00012278,2]
[323459665,1714011032838,-350.51,0.00012278,2]
[323459666,1714011032847,-522.13,0.00012278,2]
[323459667,1714011032856,-150.0,0.00012278,2]
[323459668,1714011032865,-1594.95418481,0.000123,2]
[323459669,1714011032878,-353.09574945,0.000123,2]
[323459670,1714011032889,-2.95006574,0.000123,2]
[323459671,1714011032899,-466.21993426,0.00012341,2]
[323459672,1714011032923,-124.08006574,0.00012341,2]
[323459673,1714011032934,-2734.1475,0.0001268,2]
[323459674,1714011032943,-1136.24536918,0.00012749,2]
[323459675,1714011032956,-7978.076391,0.00012749,2]
[323459676,1714011032968,-6290.6,0.00012749,2]
[323459677,1714011032979,-1501.8336298,0.00012749,2]
[323459678,1714011032991,-1403.8,0.00012749,2]
[323459679,1714011033003,-1623.1694,0.00012749,2]
[323459693,1714011038286,-2545.53212322,0.00012749,2]
[323459694,1714011038296,-164.37354978,0.00012751,2]
[323459695,1714011038305,-234.0,0.0001276,2]
[323459696,1714011038314,-1000.0,0.00012776,2]
[323459697,1714011038323,-500.0,0.00012776,2]
[323459698,1714011038333,-1000.0,0.00012777,2]
[323459699,1714011038342,-500.0,0.00012777,2]
[323459700,1714011038351,-11945.1084,0.00012779,2]
[323459701,1714011038360,-7500.0,0.0001278,2]
[323459702,1714011038369,-342.45569337,0.0001278,2]
[323459703,1714011038378,-2002.0,0.000128,2]
[323459704,1714011038393,-1000.0,0.000128,2]
[323459705,1714011038404,-1651.0,0.000128,2]
[323459706,1714011038412,-168.56,0.00012805,2]
[323459707,1714011038422,-803.29361445,0.00012868,2]
[323459708,1714011038433,-12495.34217805,0.00012868,2]
[323459709,1714011038457,-3653.72472425,0.00012868,2]
[323459710,1714011038466,-1910.4644725,0.00012868,2]
[323459711,1714011038475,-618.9185329,0.00012868,2]
[323459712,1714011038513,-591.36211083,0.00012868,2]
[323459713,1714011038523,-500.0,0.00012877,2]
[323459714,1714011038534,-400.01553035,0.00012877,2]
[323459715,1714011038544,-500.0,0.00012877,2]
[323459716,1714011038554,-2405.23,0.00012877,2]
[323459717,1714011038563,-12641.67464047,0.00012878,2]
[323459718,1714011038572,-379.78801187,0.00012878,2]
[323459719,1714011038581,-446.4031423,0.00012878,2]
[323459720,1714011038590,-526.93689436,0.00012878,2]
[323459721,1714011038599,-524.96409662,0.00012878,2]
[323459722,1714011038608,-885.01331106,0.00012879,2]
[323459723,1714011038618,-310.0122939,0.00012879,2]
[323459724,1714011038627,-509.15933644,0.00012879,2]
[323459725,1714011038636,-531.74951156,0.00012879,2]
[323459726,1714011038645,-500.0,0.00012879,2]
[323459727,1714011038654,-511.54331412,0.00012879,2]
[323459728,1714011038663,-503.25634605,0.00012879,2]
[323459729,1714011038672,-503.26117696,0.00012879,2]
[323459730,1714011038681,-306.56835033,0.00012879,2]
[323459732,1714011038690,-502.96471792,0.00012879,2]
[323459734,1714011038699,-502.54858808,0.00012879,2]
[323459735,1714011038708,-503.52385264,0.00012879,2]
[323459736,1714011038717,-509.22302604,0.00012879,2]
[323459737,1714011038726,-301.69401845,0.00012879,2]
[323459738,1714011038742,-201.42899863,0.00012879,2]
[323459739,1714011038751,-505.80116703,0.00012879,2]
[323459740,1714011038760,-346.34043636,0.00012879,2]
[323459741,1714011038772,-156.63453036,0.00012879,2]
[323459742,1714011038781,-511.89400892,0.00012879,2]
[323459743,1714011038790,-502.42343746,0.00012879,2]
[323459744,1714011038799,-504.63006525,0.00012879,2]
[323459745,1714011038808,-226.36476726,0.00012879,2]
[323459747,1714011038850,-280.29179994,0.00012879,2]
[323459748,1714011038859,-503.68613774,0.00012879,2]
[323459749,1714011038869,-518.364348,0.00012879,2]
[323459750,1714011038878,-239.97959823,0.00012879,2]
[323459752,1714011040409,-386.05921671,0.00012879,2]
[323459753,1714011040418,-270.01898671,0.00012879,2]
[323459754,1714011040464,-234.15439686,0.00012879,2]
[323459755,1714011040473,-505.73477276,0.00012879,2]
[323459756,1714011040482,-166.77083038,0.00012879,2]
[323459757,1714011040519,-333.22916962,0.00012879,2]
[323459758,1714011040528,-501.9498406,0.00012879,2]
[323459759,1714011040538,-508.26283778,0.00012879,2]
[323459760,1714011040547,-500.0,0.00012879,2]
[323459761,1714011040556,-32.27775722,0.00012879,2]
[323459762,1714011040733,-471.55018557,0.00012879,2]
[323459763,1714011040742,-508.60187883,0.00012879,2]
[323459764,1714011040752,-504.48947334,0.00012879,2]
[323459765,1714011040761,-504.31742076,0.00012879,2]
[323459766,1714011040770,-509.66917738,0.00012879,2]
[323459767,1714011040780,-500.0,0.00012879,2]
[323459768,1714011040789,-23.1301956,0.00012879,2]
[323459769,1714011040801,-480.12807761,0.00012879,2]
[323459771,1714011040811,-381.55085473,0.00012879,2]
[323459796,1714011043329,-128.52585837,0.00012879,2]
[323459798,1714011043340,-406.26751007,0.00012879,2]
[323459799,1714011043350,-506.23708601,0.00012879,2]
[323459801,1714011043363,-520.89109537,0.00012879,2]
[323459803,1714011043374,-611.91,0.00012879,2]
[323459804,1714011043386,-503.42664136,0.00012879,2]
[323459805,1714011043395,-581.04572463,0.00012879,2]
[323459807,1714011043404,-500.0,0.00012879,2]
[323459809,1714011043415,-503.49937646,0.00012879,2]
[323459811,1714011043425,-484.00842954,0.00012879,2]
[323459813,1714011043435,-512.05214524,0.00012879,2]
[323459815,1714011043445,-507.11678361,0.00012879,2]
[323459817,1714011043454,-587.97077171,0.00012879,2]
[323459819,1714011043465,-639.31964018,0.00012879,2]
[323459820,1714011043474,-500.0,0.00012879,2]
[323459821,1714011043484,-506.68940585,0.00012879,2]
[323459822,1714011043495,-609.41206944,0.00012879,2]
[323459823,1714011043506,-503.15952537,0.00012879,2]
[323459824,1714011043516,-505.47262703,0.00012879,2]
[323459825,1714011043528,-500.0,0.00012879,2]
[323459826,1714011043538,-520.5322182,0.00012879,2]
[323459827,1714011043549,-506.06493689,0.00012879,2]
[323459828,1714011043562,-513.35602551,0.00012879,2]
[323459829,1714011043573,-501.30337226,0.00012879,2]
[323459830,1714011043811,-502.33084879,0.00012879,2]
[323459831,1714011043821,-620.04,0.00012879,2]
[323459832,1714011043831,-501.49738661,0.00012879,2]
[323459833,1714011043841,-505.18036629,0.00012879,2]
[323459834,1714011043851,-503.90549875,0.00012879,2]
[323459835,1714011043860,-511.24134566,0.00012879,2]
[323459836,1714011043870,-590.30880538,0.00012879,2]
[323459837,1714011043878,-505.15100647,0.00012879,2]
[323459838,1714011043888,-502.74524662,0.00012879,2]
[323459839,1714011043897,-506.98571143,0.00012879,2]
[323459840,1714011043906,-502.22415547,0.00012879,2]
[323459841,1714011043916,-506.40909104,0.00012879,2]
[323459842,1714011043925,-505.64381992,0.00012879,2]
[323459843,1714011043933,-506.86153095,0.00012879,2]
[323459844,1714011043942,-151.59715877,0.00012879,2]
[323459845,1714011043951,-500.0,0.00012879,2]
[323459846,1714011043959,-482.83878724,0.00012879,2]
[323459847,1714011044003,-92.60089199,0.00012879,2]
[323459848,1714011044013,-503.10571622,0.00012879,2]
[323459849,1714011044022,-505.60100002,0.00012879,2]
[323459850,1714011044032,-505.60449536,0.00012879,2]
[323459851,1714011044041,-500.73559187,0.00012879,2]
[323459852,1714011044050,-500.0,0.00012879,2]
[323459853,1714011044059,-504.62925628,0.00012879,2]
[323459854,1714011044068,-500.0,0.00012879,2]
[323459855,1714011044077,-504.32014337,0.00012879,2]
[323459856,1714011044085,-472.89357803,0.00012879,2]
[323459857,1714011044607,-32.51898837,0.00012879,2]
[323459858,1714011044616,-443.15360204,0.00012879,2]
[323459862,1714011046367,-202.25,0.00012278,2]
[323459863,1714011046376,-349.71,0.00012278,2]
[323459864,1714011046387,-212.76754587,0.00012878,2]
[323459865,1714011046397,-745.27245413,0.00012878,2]
[323459866,1714011046478,-2668.80294506,0.00012878,2]
[323459867,1714011046487,-621.73302935,0.00012878,2]
[323459868,1714011046497,-55.95986798,0.00012879,2]
[323459869,1714011046506,-503.29948578,0.00012879,2]
[323459870,1714011046515,-504.35984398,0.00012879,2]
[323459871,1714011046525,-508.90259081,0.00012879,2]
[323459872,1714011046533,-500.0,0.00012879,2]
[323459873,1714011046543,-507.4667822,0.00012879,2]
[323459874,1714011046552,-500.0,0.00012879,2]
[323459875,1714011046561,-639.66847335,0.00012879,2]
[323459876,1714011046571,-502.99053703,0.00012879,2]
[323459877,1714011046580,-504.55424848,0.00012879,2]
[323459878,1714011046589,-504.08536081,0.00012879,2]
[323459879,1714011046598,-214.753276,0.00012879,2]
[323459880,1714011046607,-214.753276,0.00012879,2]
[323459881,1714011046617,-502.48676472,0.00012879,2]
[323459882,1714011046627,-508.24286311,0.00012879,2]
[323459883,1714011046636,-491.284761,0.00012879,2]
[323459884,1714011046645,-491.284761,0.00012879,2]
[323459885,1714011046654,-500.0,0.00012879,2]
[323459886,1714011046667,-500.0,0.00012879,2]
[323459887,1714011046677,-500.0,0.00012879,2]
[323459888,1714011046686,-500.0,0.00012879,2]
[323459889,1714011046695,-544.60354587,0.00012879,2]
[323459890,1714011046705,-562.23253686,0.00012879,2]
[323459891,1714011046714,-500.0,0.00012879,2]
[323459892,1714011046723,-500.0,0.00012879,2]
[323459893,1714011046732,-500.0,0.00012879,2]
[323459894,1714011046741,-500.0,0.00012879,2]
[323459895,1714011046750,-500.0,0.00012879,2]
[323459896,1714011046760,-500.0,0.00012879,2]
[323459897,1714011046769,-500.0,0.00012879,2]
[323459898,1714011046778,-500.0,0.00012879,2]
[323459899,1714011046787,-502.01054946,0.00012879,2]
[323459900,1714011046796,-500.0,0.00012879,2]
[323459901,1714011046806,-507.30558358,0.00012879,2]
[323459902,1714011046815,-519.92434155,0.00012879,2]
[323459903,1714011046824,-690.74,0.00012879,2]
[323459904,1714011046833,-201.96511688,0.00012879,2]
[323459905,1714011046843,-500.0,0.00012879,2]
[323459906,1714011046852,-500.0,0.00012879,2]
[323459907,1714011046861,-504.6661841,0.00012879,2]
[323459908,1714011046870,-553.24032903,0.00012879,2]
[323459909,1714011046879,-165.01499632,0.00012879,2]
[323459910,1714011046888,-500.0,0.00012879,2]
[323459911,1714011046897,-1013.26,0.00012879,2]
[323459912,1714011046906,-559.29478385,0.00012879,2]
[323459913,1714011046918,-500.0,0.00012879,2]
[323459914,1714011046927,-500.0,0.00012879,2]
[323459915,1714011046936,-500.0,0.00012879,2]
[323459916,1714011046945,-501.55645542,0.00012879,2]
[323459917,1714011046953,-573.50878285,0.00012879,2]
[323459918,1714011046963,-500.0,0.00012879,2]
[323459919,1714011046972,-586.34468523,0.00012879,2]
[323459920,1714011046981,-556.71613703,0.00012879,2]
[323459921,1714011046991,-500.0,0.00012879,2]
[323459922,1714011046999,-675.33,0.00012879,2]
[323459923,1714011047009,-500.0,0.00012879,2]
[323459924,1714011047018,-570.8330535,0.00012879,2]
[323459925,1714011047026,-569.46577425,0.00012879,2]
[323459926,1714011047035,-580.30314092,0.00012879,2]
[323459927,1714011047044,-938.53,0.00012879,2]
[323459928,1714011047054,-3831.67,0.00012879,2]
[323459929,1714011047063,-500.0,0.00012879,2]
[323459930,1714011047072,-500.0,0.00012879,2]
[323459931,1714011047081,-625.39,0.00012879,2]
[323459932,1714011047090,-500.0,0.00012879,2]
[323459933,1714011047099,-500.0,0.00012879,2]
[323459934,1714011047108,-500.0,0.00012879,2]
[323459935,1714011047118,-280.0066366,0.00012879,2]
[323459936,1714011047127,-526.93910437,0.00012879,2]
[323459937,1714011047136,-500.0,0.00012879,2]
[323459938,1714011047145,-500.0,0.00012879,2]
[323459939,1714011047154,-500.0,0.00012879,2]
[323459940,1714011047165,-500.0,0.00012879,2]
[323459941,1714011047175,-2290.62,0.00012879,2]
[323459942,1714011047184,-500.0,0.00012879,2]
[323459943,1714011047193,-500.0,0.00012879,2]
[323459944,1714011047203,-500.0,0.00012879,2]
[323459945,1714011047215,-598.80235573,0.00012879,2]
[323459946,1714011047224,-548.69481159,0.00012879,2]
[323459947,1714011047234,-500.0,0.00012879,2]
[323459948,1714011047243,-500.0,0.00012879,2]
[323459949,1714011047253,-528.33454347,0.00012879,2]
[323459950,1714011047262,-500.0,0.00012879,2]
[323459951,1714011047271,-500.0,0.00012879,2]
[323459952,1714011047280,-500.0,0.00012879,2]
[323459953,1714011047290,-537.47360652,0.00012879,2]
[323459954,1714011047299,-517.86808139,0.00012879,2]
[323459955,1714011047308,-500.0,0.00012879,2]
[323459956,1714011047317,-500.0,0.00012879,2]
[323459957,1714011047326,-531.44065449,0.00012879,2]
[323459958,1714011047335,-559.76148767,0.00012879,2]
[323459959,1714011047345,-526.94,0.00012879,2]
[323459960,1714011047354,-737.51109255,0.00012879,2]
[323459961,1714011047363,-76433.5310512,0.0001288,2]
[323459962,1714011047430,-360.65000001,0.0001288,2]
[323459963,1714011224195,890.75,0.00015,30]
[323459964,1714011833205,-621.73302935,9.942e-05,2]
[323459965,1714011833225,-314.72,9.943e-05,2]
[323459966,1714011833245,-427.25783952,0.0001,2]
[323459967,1714011833266,-155.0,0.00011301,2]
[323459968,1714011833285,-2178.07,0.00011302,2]
[323459969,1714011833306,-507.71,0.0001131,2]
[323459970,1714011833327,-627.25,0.00011311,2]
[323459971,1714011833349,-12057.59,0.00011315,2]
[323459972,1714011833369,-154.77,0.00011767,2]
[323459973,1714011833389,-154.77,0.00011771,2]
[323459974,1714011833410,-1068.07,0.00011771,2]
[323459975,1714011833432,-154.77,0.00011775,2]
[323459976,1714011833452,-154.77,0.00011779,2]
[323459977,1714011833473,-154.77,0.00011784,2]
[323459978,1714011833494,-154.77,0.00011788,2]
[323459979,1714011833514,-154.77,0.00011792,2]
[323459980,1714011833533,-154.77,0.00011796,2]
[323459981,1714011833554,-154.77,0.000118,2]
[323459982,1714011833576,-154.77,0.00011805,2]
[323459983,1714011833600,-154.77,0.00011809,2]
[323459984,1714011833623,-192.8,0.00011812,2]
[323459985,1714011833645,-154.77,0.00011813,2]
[323459986,1714011833666,-154.77,0.00011817,2]
[323459987,1714011833688,-191.98493756,0.00011819,2]
[323459988,1714011833709,-154.77,0.00011821,2]
[323459989,1714011833729,-154.77,0.00011826,2]
[323459990,1714011833750,-1000.0,0.00011879,2]
[323459991,1714011833771,-2750.0,0.00012,2]
[323459992,1714011833793,-314.72,0.00012207,2]
[323459993,1714011833817,-910.37,0.00012289,2]
[323459994,1714011833837,-150.0,0.0001229,2]
[323459995,1714011833856,-300.31,0.000123,2]
[323459996,1714011833877,-505.0,0.00012301,2]
[323459997,1714011833896,-168.56,0.00012483,2]
[323459998,1714011833915,-4070.7299,0.00012649,2]
[323459999,1714011833935,-12614.30813946,0.0001275,2]
[323460000,1714011833959,-164.37354978,0.00012751,2]
[323460001,1714011833979,-1000.0,0.00012777,2]
[323460002,1714011833999,-500.0,0.00012777,2]
[323460003,1714011834021,-324.8216,0.00012779,2]
[323460004,1714011834042,-2439.5669,0.0001278,2]
[323460005,1714011834062,-7500.0,0.0001278,2]
[323460006,1714011834081,-342.45569332,0.0001278,2]
[323460007,1714011834101,-188.58,0.000128,2]
[323460008,1714011834120,-155.0,0.00012864,2]
[323460009,1714011834140,-5534.45244612,0.00012865,2]
[323460010,1714011834160,-444.6193056,0.00012869,2]
[323460011,1714011834180,-11352.9025438,0.00012869,2]
[323460012,1714011834199,-1357.1550213,0.00012869,2]
[323460013,1714011834219,-185.14195172,0.0001287,2]
[323460014,1714011834239,-591.89418134,0.00012878,2]
[323460015,1714011834259,-538.90579585,0.00012878,2]
[323460016,1714011834279,-368.89846904,0.00012878,2]
[323460017,1714011834298,-256.42676022,0.00012878,2]
[323460018,1714011834319,-971.04,0.00012878,2]
[323460019,1714011834339,-500.0,0.00012878,2]
[323460020,1714011834362,-325.8174,0.00012878,2]
[323460021,1714011834382,-910.21453602,0.00012878,2]
[323460033,1714012231469,-155.0,0.00010075,2]
[323460034,1714012231478,-271.64000004,0.00010076,2]
[323460035,1714012231490,-350.09302931,0.00010076,2]
[323460036,1714012231499,-314.05,0.00010078,2]
[323460037,1714012231508,-2384.48043101,0.00011724,2]
[323460038,1714012231517,-3021.4217,0.00011725,2]
[323460039,1714012231527,-3318.678,0.00011826,2]
[323460040,1714012231536,-1451.71,0.00011882,2]
[323460041,1714012231762,-1000.0,0.00011901,2]
[323460042,1714012231794,-506.0,0.00012328,2]
[323460043,1714012231805,-314.05,0.00012341,2]
[323460044,1714012231815,-1000.0,0.000125,2]
[323460045,1714012231824,-7500.0,0.0001278,2]
[323460046,1714012231834,-150.72,0.000128,2]
[323460047,1714012231844,-153.51,0.000128,2]
[323460048,1714012231853,-419.21,0.000128,2]
[323460050,1714012231864,-350.29,0.000128,2]
[323460052,1714012231874,-306.34,0.000128,2]
[323460053,1714012231884,-150.0,0.000128,2]
[323460054,1714012231893,-162.85,0.000128,2]
[323460055,1714012231903,-419.21,0.000128,2]
[323460056,1714012231912,-150.0,0.000128,2]
[323460057,1714012231922,-162.85,0.000128,2]
[323460058,1714012231931,-419.21,0.000128,2]
[323460059,1714012231940,-150.0,0.000128,2]
[323460060,1714012231950,-150.0,0.000128,2]
[323460061,1714012231959,-162.85,0.000128,2]
[323460062,1714012231969,-268.7,0.000128,2]
[323460063,1714012231978,-162.85,0.000128,2]
[323460064,1714012231989,-150.0,0.000128,2]
[323460065,1714012231999,-150.0,0.000128,2]
[323460066,1714012232009,-150.0,0.000128,2]
[323460067,1714012232018,-162.55,0.000128,2]
[323460068,1714012232028,-158.0827145,0.00012868,2]
[323460069,1714012232038,-8492.3536652,0.00012868,2]
[323460070,1714012232047,-1015.1976884,0.00012868,2]
[323460071,1714012232057,-237.1240718,0.00012869,2]
[323460072,1714012232067,-393.45516109,0.00012872,2]
[323460073,1714012232077,-470.4090219,0.00012877,2]
[323460074,1714012232086,-236.15997383,0.00012878,2]
[323460075,1714012232095,-12607.2836553,0.00012878,2]
[323460076,1714012232105,-546.84456326,0.00012878,2]